bitfinex-derivatives/quotes_SOLF0:USTF0_20220108
["timestamp","ask_amount","ask_price","bid_price","bid_amount"]
[1641665854023,7.3046019,136.96,136.8,7.3046019]
[1641665854524,7.3046019,136.96,136.8,11.3046019]
[1641665854722,27.66479,136.95,136.84,27.66479]
[1641665854922,7.30540235,136.94,136.84,27.66479]
[1641665855222,7.3056692,136.94,136.84,27.66479]
[1641665855823,5.84250025,136.93,136.82,27.66479]
[1641665856022,5.84250025,136.93,136.72,4.0]
[1641665856222,7.31047591,136.85,136.72,4.0]
[1641665856522,7.31395136,136.78,136.66,9.13907956]
[1641665856723,27.66479,136.77,136.69,27.66479]
[1641665857725,27.66479,136.77,136.63,7.31395136]
[1641665858126,27.66479,136.77,136.61,15.08576584]
[1641665858326,7.31957254,136.68,136.61,15.08576584]
[1641665858726,8.0,136.76,136.66,4.0]
[1641665859027,2.43685937,136.67,136.63,1.828]
[1641665859228,2.43685937,136.67,136.66,4.0]
[1641665859428,2.43685937,136.75,136.66,11.31047591]
[1641665859631,2.43685937,136.75,136.67,4.0]
[1641665859829,2.43685937,136.75,136.68,7.31101038]
[1641665860029,2.43685937,136.82,136.73,4.0]
[1641665860232,2.43685937,136.82,136.68,11.31101038]
[1641665860233,2.43685937,136.82,136.7,4.0]
[1641665860429,2.43685937,136.74,136.68,7.31101038]
[1641665860632,2.43685937,136.74,136.73,31.66479]
[1641665860829,2.43685937,136.83,136.73,42.97339588]
[1641665861029,2.43685937,136.83,136.79,7.30513551]
[1641665861229,2.43685937,136.86,136.82,4.0]
[1641665861431,2.43685937,136.86,136.79,7.30513551]
[1641665861729,2.43685937,136.88,136.83,4.0]
[1641665862132,7.30727073,136.91,136.78,1.826]
[1641665862336,7.30727073,136.91,136.75,7.30727073]
[1641665862532,2.43685937,136.9,136.74,1.827]
[1641665862732,7.30860588,136.88,136.77,27.66479]
[1641665862932,7.30860588,136.88,136.78,4.0]
[1641665863133,30.10164937,136.9,136.8,4.0]
[1641665863433,2.43685937,136.93,136.79,7.30513551]
[1641665863634,13.15057565,136.91,136.78,1.826]
[1641665863834,7.30780474,136.9,136.77,27.66479]
[1641665864035,7.30914008,136.87,136.77,27.66479]
[1641665864334,2.43685937,136.89,136.81,4.0]
[1641665864535,2.43685937,136.89,136.78,7.30593607]
[1641665864736,2.43685937,136.86,136.8,27.66479]
[1641665865335,7.30887297,136.88,136.8,27.66479]
[1641665865535,2.43685937,136.89,136.8,27.66479]
[1641665865735,2.43685937,136.87,136.8,27.66479]
[1641665865935,2.43685937,136.87,136.8,31.66479]
[1641665866135,2.43685937,136.87,136.8,27.66479]
[1641665866336,2.43685937,136.9,136.86,4.0]
[1641665866541,2.43685937,136.9,136.89,4.0]
[1641665866936,2.43685937,136.93,136.89,4.0]
[1641665867136,2.43685937,136.93,136.92,4.0]
[1641665867338,2.43685937,137.0,136.88,27.66479]
[1641665867737,7.30753773,136.9,136.81,4.0]
[1641665867939,5.84068099,136.98,136.78,5.825]
[1641665868138,7.30780474,136.9,136.78,4.0]
[1641665868338,2.43685937,136.89,136.78,4.0]
[1641665868538,7.30887297,136.88,136.77,4.0]
[1641665868738,2.43685937,136.89,136.77,27.66479]
[1641665868938,2.43685937,136.89,136.72,1.827]
[1641665868939,7.31181223,136.82,136.71,1.827]
[1641665869138,7.31181223,136.82,136.69,4.0]
[1641665869139,7.31475386,136.77,136.63,1.827]
[1641665869339,7.31555653,136.75,136.63,4.0]
[1641665869540,5.8491045,136.78,136.61,15.08576584]
[1641665869740,5.85069034,136.74,136.61,15.08576584]
[1641665869943,7.31689471,136.73,136.61,19.08576584]
[1641665870141,8.28754971,136.74,136.61,19.08576584]
[1641665870341,2.43685937,136.72,136.64,4.0]
[1641665870541,2.43685937,136.72,136.61,19.08576584]
[1641665870743,2.43685937,136.72,136.64,27.66479]
[1641665870941,7.31635938,136.74,136.64,27.66479]
[1641665871141,7.31769785,136.71,136.64,27.66479]
[1641665871942,2.43685937,136.7,136.64,27.66479]
[1641665872143,2.43685937,136.7,136.66,4.0]
[1641665872443,2.43685937,136.71,136.64,23.34711143]
[1641665872841,2.43685937,136.71,136.64,19.34711143]
[1641665873041,2.43685937,136.75,136.64,19.34711143]
[1641665873441,9.7526835,136.75,136.64,19.34711143]
[1641665873641,9.7526835,136.75,136.62,27.66479]
[1641665873842,4.26585937,136.74,136.6,4.0]
[1641665874041,7.31769785,136.71,136.56,11.31769785]
[1641665874243,29.27614726,136.71,136.51,71.57620911]
[1641665874443,13.17461301,136.66,136.52,4.0]
[1641665874647,13.17434506,136.66,136.52,4.0]
[1641665874844,27.66479,136.65,136.53,27.66479]
[1641665875246,2.43685937,136.64,136.53,27.66479]
[1641665875445,2.43685937,136.64,136.53,31.66479]
[1641665876046,2.43685937,136.64,136.51,34.98516627]
[1641665876245,2.43685937,136.64,136.47,82.13586584]
[1641665876246,5.85621119,136.61,136.47,22.40801816]
[1641665876445,7.32466581,136.58,136.47,15.08576584]
[1641665876646,7.32761779,136.53,136.47,15.08576584]
[1641665876847,27.66479,136.48,136.47,15.08576584]
[1641665877048,27.66479,136.5,136.44,6.08576584]
[1641665877445,5.86187584,136.48,136.44,6.08576584]
[1641665877847,2.43685937,136.48,136.44,6.08576584]
[1641665878246,2.43685937,136.48,136.45,7.32359295]
[1641665878446,5.937e-05,136.49,136.47,4.0]
[1641665878645,5.937e-05,136.49,136.48,4.0]
[1641665878846,5.11247179,136.6,136.48,31.66479]
[1641665879046,5.85705711,136.59,136.48,27.66479]
[1641665879246,7.32547066,136.57,136.48,27.66479]
[1641665879545,7.32547066,136.57,136.47,4.0]
[1641665879746,7.32600733,136.56,136.47,4.0]
[1641665879948,7.32600733,136.56,136.38,40.47106185]
[1641665879949,7.32734933,136.53,136.39,5.831]
[1641665880147,1.70948496,136.56,136.38,40.47106185]
[1641665880148,7.32788627,136.52,136.38,40.47106185]
[1641665880349,5.86086128,136.5,136.38,40.47106185]
[1641665880548,5.86086128,136.5,136.43,4.0]
[1641665880746,1.70948496,136.52,136.39,29.30080943]
[1641665880747,1.70948496,136.52,136.49,59.32958]
[1641665880949,7.68775018,136.6,136.49,59.32958]
[1641665880950,12.43365196,136.65,136.49,62.65076017]
[1641665881146,5.11247179,136.65,136.57,4.0]
[1641665881347,5.11247179,136.65,136.56,11.31743012]
[1641665881550,40.47106185,136.71,136.64,4.0]
[1641665881746,5.09557317,136.72,136.68,4.0]
[1641665881947,5.09557317,136.72,136.71,4.0]
[1641665882446,6.80044481,136.72,136.71,15.30967435]
[1641665882646,1.70487164,136.72,136.71,11.30967435]
[1641665882849,1.70487164,136.72,136.71,62.63791881]
[1641665883050,0.18487164,136.72,136.71,63.32958]
[1641665883248,5.84455805,136.88,136.71,55.32958]
[1641665883451,5.8470746,136.83,136.64,5.827]
[1641665883749,13.16439479,136.77,136.68,4.0]
[1641665883950,5.84964093,136.77,136.63,33.25045704]
[1641665884147,5.85104654,136.73,136.58,1.828]
[1641665884550,7.31796561,136.71,136.58,4.0]
[1641665884849,7.31796561,136.71,136.65,4.0]
[1641665885048,13.1618948,136.79,136.67,4.0]
[1641665885249,7.31341646,136.79,136.64,7.31341646]
[1641665885449,8.0,136.76,136.64,7.31341646]
[1641665885852,8.0,136.76,136.67,4.0]
[1641665886049,8.0,136.76,136.61,29.25366585]
[1641665886050,8.0,136.76,136.66,4.0]
[1641665886251,7.31528895,136.76,136.6,7.31528895]
[1641665886651,7.3171624,136.72,136.57,7.3171624]
[1641665886851,27.66479,136.7,136.57,7.3171624]
[1641665887152,7.31876898,136.69,136.54,7.31876898]
[1641665887353,7.31876898,136.69,136.55,4.0]
[1641665887551,27.66479,136.7,136.55,7.31796561]
[1641665887753,27.66479,136.7,136.62,4.0]
[1641665887953,27.66479,136.7,136.61,4.0]
[1641665888155,27.66479,136.7,136.63,4.0]
[1641665888354,27.66479,136.72,136.57,4.0]
[1641665888554,27.66479,136.72,136.65,4.0]
[1641665888754,7.31582413,136.75,136.68,4.0]
[1641665888954,27.66479,136.76,136.68,4.0]
[1641665889154,7.31421884,136.78,136.7,4.0]
[1641665889355,7.01495592,136.86,136.7,4.0]
[1641665889554,7.31341646,136.79,136.69,4.0]
[1641665889753,7.31341646,136.79,136.65,4.0]
[1641665889954,20.0,136.81,136.62,1.827]
[1641665890155,2.16922806,136.85,136.57,1.828]
[1641665890156,7.31743012,136.72,136.57,1.828]
[1641665890355,13.16897162,136.72,136.57,4.0]
[1641665890555,7.31930467,136.68,136.57,4.0]
[1641665890757,27.66479,136.62,136.56,27.66479]
[1641665890954,27.66479,136.62,136.57,4.0]
[1641665891153,27.66479,136.62,136.56,27.66479]
[1641665891555,27.66479,136.64,136.57,4.0]
[1641665891955,27.66479,136.64,136.56,31.66479]
[1641665892155,27.66479,136.64,136.5,9.15064422]
[1641665892156,27.66479,136.64,136.5,7.32064422]
[1641665892356,7.32520236,136.57,136.47,1.83]
[1641665892556,7.32520236,136.57,136.43,40.47106185]
[1641665892757,27.66479,136.54,136.46,27.66479]
[1641665893057,35.35438467,136.56,136.44,27.66479]
[1641665893259,27.66479,136.56,136.5,4.0]
[1641665893658,27.66479,136.56,136.46,11.32305664]
[1641665893861,27.66479,136.56,136.51,4.0]
[1641665894259,27.66479,136.56,136.5,4.0]
[1641665894459,7.32412934,136.59,136.54,4.0]
[1641665894660,1.831,136.66,136.55,4.0]
[1641665894962,5.85321949,136.68,136.6,7.31555653]
[1641665895160,29.27293351,136.73,136.65,4.0]
[1641665895360,48.89555431,136.75,136.61,11.3150214]
[1641665895560,48.89555431,136.75,136.68,4.0]
[1641665895960,40.47106185,136.75,136.69,4.0]
[1641665896161,66.29822086,136.79,136.71,4.0]
[1641665896361,66.29822086,136.79,136.67,4.0]
[1641665896362,7.3136839,136.79,136.67,4.0]
[1641665896563,7.31582413,136.75,136.62,1.828]
[1641665896762,27.66479,136.71,136.63,4.0]
[1641665897166,7.3136839,136.79,136.68,4.0]
[1641665897364,7.31288164,136.8,136.72,4.0]
[1641665897564,40.47106185,136.85,136.67,4.0]
[1641665897565,14.32991125,136.81,136.69,7.31074314]
[1641665897767,7.01729699,136.81,136.68,4.0]
[1641665897968,7.01729699,136.81,136.66,11.31207956]
[1641665898267,7.01729699,136.81,136.66,4.0]
[1641665898463,7.3136839,136.79,136.63,9.1416839]
[1641665898663,7.31582413,136.75,136.59,7.31582413]
[1641665898865,5.84986,136.76,136.58,11.31635938]
[1641665898866,27.66479,136.68,136.58,11.31635938]
[1641665899064,27.66479,136.68,136.58,4.0]
[1641665899270,5.85245219,136.7,136.62,4.0]
[1641665899466,0.83139631,136.67,136.62,4.0]
[1641665899668,0.83139631,136.67,136.59,4.0]
[1641665899866,0.83139631,136.67,136.64,4.0]
[1641665900166,7.32064422,136.66,136.58,1.829]
[1641665900365,7.32091219,136.65,136.56,27.66479]
[1641665900565,6.68603878,136.65,136.56,27.66479]
[1641665900767,27.66479,136.62,136.53,27.66479]
[1641665900967,5.85678065,136.6,136.52,40.47106185]
[1641665901168,7.32412934,136.59,136.52,40.47106185]
[1641665901369,7.32412934,136.59,136.57,2.94568972]
[1641665901668,8.15552565,136.59,136.53,40.47106185]
[1641665901869,2.66139631,136.59,136.53,40.47106185]
[1641665902068,0.83139631,136.58,136.53,44.47106185]
[1641665902368,0.83139631,136.58,136.5,11.27355024]
[1641665902369,0.83139631,136.58,136.55,4.0]
[1641665902569,7.02574474,136.65,136.55,4.0]
[1641665902768,1.83,136.7,136.6,4.0]
[1641665902968,75.45381746,136.71,136.58,27.66479]
[1641665902969,68.13585185,136.71,136.62,4.0]
[1641665903570,27.66479,136.71,136.62,4.0]
[1641665903770,27.66479,136.71,136.58,34.98114938]
[1641665903971,5.85312139,136.68,136.58,27.66479]
[1641665904172,7.32118017,136.65,136.56,4.0]
[1641665904470,7.32118017,136.65,136.5,40.47106185]
[1641665904672,5.85524476,136.63,136.5,40.47106185]
[1641665904873,27.66479,136.57,136.48,40.47106185]
[1641665905072,27.66479,136.57,136.49,4.0]
[1641665905473,27.66479,136.57,136.48,40.47106185]
[1641665905673,0.83208947,136.56,136.48,40.47106185]
[1641665906074,0.83208947,136.56,136.46,27.66479]
[1641665906273,0.83208947,136.56,136.44,27.66479]
[1641665906474,0.83208947,136.56,136.45,4.0]
[1641665906675,7.32815477,136.52,136.4,40.47106185]
[1641665906874,27.66479,136.45,136.4,40.47106185]
[1641665907274,27.66479,136.45,136.39,40.47106185]
[1641665907476,27.66479,136.47,136.39,40.47106185]
[1641665907676,5.8615388,136.49,136.39,40.47106185]
[1641665907878,0.83285096,136.44,136.39,40.47106185]
[1641665908277,0.83285096,136.48,136.39,40.47106185]
[1641665908478,0.83285096,136.48,136.4,4.0]
[1641665908677,0.83285096,136.48,136.38,34.99213933]
[1641665908880,5.86416046,136.43,136.37,15.39780463]
[1641665909278,7.33406674,136.41,136.37,15.39780463]
[1641665909479,7.33514267,136.39,136.32,17.86886648]
[1641665909679,5.86659995,136.37,136.32,17.86886648]
[1641665910081,7.3381031,136.33,136.32,17.86886648]
[1641665910281,0.83285096,136.36,136.28,58.98453696]
[1641665910680,7.33944954,136.31,136.22,4.0]
[1641665910880,35.00423954,136.31,136.21,27.66479]
[1641665911082,35.00423954,136.31,136.21,31.66479]
[1641665911280,35.00423954,136.31,136.21,27.66479]
[1641665911481,0.83285096,136.3,136.22,29.01287427]
[1641665911682,0.83285096,136.3,136.22,25.01287427]
[1641665912284,20.83285096,136.3,136.22,25.01287427]
[1641665912482,7.3429526,136.24,136.2,11.27021478]
[1641665912882,27.66479,136.21,136.2,11.27021478]
[1641665913083,35.01070934,136.21,136.14,80.71675691]
[1641665913585,7.34780852,136.15,136.06,4.0]
[1641665913783,7.70981528,136.2,136.06,4.0]
[1641665913983,7.70981528,136.2,136.03,74.77620787]
[1641665914184,7.70981528,136.2,136.05,4.0]
[1641665914384,20.0,136.19,136.03,4.0]
[1641665914584,5.87596649,136.15,136.03,4.0]
[1641665914782,5.87596649,136.15,136.02,23.78761001]
[1641665914985,27.66479,136.13,136.02,23.78761001]
[1641665915483,27.66479,136.13,136.02,4.0]
[1641665915683,27.66479,136.13,136.03,4.0]
[1641665915883,33.54075649,136.15,136.03,4.0]
[1641665916185,40.88991501,136.15,136.03,4.0]
[1641665916383,33.54075649,136.15,136.08,4.0]
[1641665916584,7.04855835,136.2,136.09,4.0]
[1641665916784,1.836,136.31,136.19,4.0]
[1641665916984,35.00666438,136.28,136.19,4.0]
[1641665917184,35.00666438,136.28,136.2,4.0]
[1641665917584,35.00666438,136.28,136.12,1.835]
[1641665917585,7.3429526,136.26,136.12,1.835]
[1641665917785,5.87268382,136.23,136.11,7.3429526]
[1641665917986,1.835,136.22,136.17,4.0]
[1641665918185,2.06563905,136.25,136.13,22.60115423]
[1641665918388,2.06563905,136.25,136.16,4.0]
[1641665918586,19.09283459,136.27,136.24,15.3354117]
[1641665918789,8.87281912,136.41,136.26,4.0]
[1641665918987,29.49779,136.47,136.27,4.0]
[1641665919186,19.16258,136.47,136.29,4.0]
[1641665919388,1.833,136.49,136.39,4.0]
[1641665919588,1.832,136.5,136.37,7.32869183]
[1641665919788,7.33030347,136.5,136.36,4.0]
[1641665919990,1.832,136.5,136.4,4.0]
[1641665920288,1.59596336,136.49,136.34,4.0]
[1641665920488,7.33326,136.44,136.3,4.0]
[1641665920688,7.33783387,136.36,136.26,55.32958]
[1641665920892,27.66479,136.32,136.26,55.32958]
[1641665921090,1.834,136.35,136.3,4.0]
[1641665921289,1.834,136.44,136.31,7.33218462]
[1641665921489,7.33218462,136.46,136.31,7.33218462]
[1641665921490,1.834,136.45,136.31,7.33218462]
[1641665921689,1.59733355,136.43,136.3,4.0]
[1641665921888,7.33568075,136.4,136.3,4.0]
[1641665922088,7.33568075,136.4,136.26,55.32958]
[1641665922388,20.0,136.39,136.26,55.32958]
[1641665922589,28.0,136.42,136.26,27.66479]
[1641665922890,27.66479,136.36,136.26,27.66479]
[1641665923089,1.834,136.37,136.28,4.0]
[1641665923291,3.43033355,136.41,136.33,4.0]
[1641665923491,1.59733355,136.41,136.33,7.33084085]
[1641665923693,7.03353919,136.49,136.4,4.0]
[1641665923893,7.03353919,136.49,136.4,7.32010834]
[1641665924092,14.34379075,136.69,136.48,8.0]
[1641665924292,20.0,136.65,136.47,4.0]
[1641665924495,20.0,136.65,136.5,4.0]
[1641665924694,20.0,136.65,136.49,4.0]
[1641665924895,5.85647167,136.61,136.51,27.66479]
[1641665925094,13.19224928,136.52,136.35,1.83]
[1641665925293,13.19224928,136.52,136.29,7.33299113]
[1641665925294,7.33299113,136.45,136.32,4.0]
[1641665925495,7.33352889,136.44,136.31,7.33191583]
[1641665925694,1.11672226,136.51,136.42,4.0]
[1641665925894,1.11672226,136.51,136.38,4.0]
[1641665926096,1.11672226,136.43,136.36,11.32949756]
[1641665926295,1.11672226,136.43,136.39,4.0]
[1641665926499,1.11672226,136.43,136.42,11.32520236]
[1641665926696,1.11672226,136.49,136.37,24.9908922]
[1641665926898,1.11672226,136.49,136.42,27.66479]
[1641665927095,1.11672226,136.52,136.42,31.66479]
[1641665927295,1.11672226,136.52,136.43,4.0]
[1641665927496,1.11672226,136.52,136.47,4.0]
[1641665927696,1.11672226,136.52,136.42,27.66479]
[1641665927895,1.11672226,136.52,136.47,4.0]
[1641665928095,1.11672226,136.52,136.42,31.66479]
[1641665928295,1.11672226,136.52,136.44,4.0]
[1641665928497,1.11672226,136.52,136.49,4.0]
[1641665928795,7.32815477,136.54,136.43,4.0]
[1641665928998,7.32815477,136.54,136.46,27.66479]
[1641665929197,1.11672226,136.53,136.46,27.66479]
[1641665929397,1.11672226,136.53,136.45,4.0]
[1641665929596,1.11672226,136.53,136.42,27.66479]
[1641665929797,1.11672226,136.53,136.44,4.0]
[1641665929997,1.11672226,136.53,136.46,4.0]
[1641665930197,1.11672226,136.53,136.42,31.66479]
[1641665930398,1.11672226,136.53,136.43,7.32547066]
[1641665930599,1.11672226,136.54,136.48,4.0]
[1641665930998,1.11672226,136.54,136.43,11.32547066]
[1641665930999,1.11672226,136.54,136.47,27.66479]
[1641665931199,1.11672226,136.54,136.43,4.0]
[1641665931400,1.11672226,136.54,136.42,27.66479]
[1641665931401,7.32949756,136.51,136.42,27.66479]
[1641665931600,7.33003482,136.5,136.38,4.0]
[1641665931803,5.86013157,136.52,136.19,54.94]
[1641665932003,1.11672226,136.54,136.26,12.26556478]
[1641665932004,4.0,136.43,136.26,12.26556478]
[1641665932201,5.86524468,136.4,136.28,4.0]
[1641665932401,5.86524468,136.4,136.26,12.26556478]
[1641665932402,5.86524468,136.4,136.34,7.33057215]
[1641665932601,29.33196451,136.47,136.35,4.0]
[1641665932801,1.11672226,136.39,136.38,4.0]
[1641665933001,14.35907152,136.54,136.38,62.65612407]
[1641665933201,7.03091675,136.54,136.42,4.0]
[1641665933401,1.11796134,136.48,136.38,59.32958]
[1641665933602,1.11796134,136.48,136.38,55.32958]
[1641665933801,7.32842329,136.53,136.38,62.65800329]
[1641665934002,7.03091675,136.54,136.38,55.32958]
[1641665934003,5.86106431,136.5,136.38,55.32958]
[1641665934200,5.86106431,136.5,136.38,62.65800329]
[1641665934403,5.86106431,136.5,136.38,55.32958]
[1641665934801,1.00631853,136.49,136.38,55.32958]
[1641665935000,7.33191583,136.47,136.38,51.32958]
[1641665935203,5.86342976,136.44,136.38,23.66479]
[1641665935803,1.00631853,136.43,136.38,23.66479]
[1641665936804,5.86441794,136.42,136.38,23.66479]
[1641665937204,1.00631853,136.46,136.38,23.66479]
[1641665937404,1.832,136.48,136.39,7.32761779]
[1641665937705,5.86004526,136.52,136.39,7.32761779]
[1641665938206,5.8622617,136.47,136.38,23.66479]
[1641665938605,5.86055961,136.51,136.41,4.0]
[1641665938804,5.86055961,136.51,136.38,27.66479]
[1641665939003,7.03040167,136.55,136.47,27.66479]
[1641665939609,5.86011763,136.52,136.45,27.66479]
[1641665941207,9.86180588,136.48,136.37,7.32869183]
[1641665941407,1.832,136.47,136.37,7.32869183]
[1641665941607,5.86180588,136.48,136.33,15.28175575]
[1641665941811,1.832,136.53,136.35,4.0]
[1641665942008,1.832,136.53,136.4,4.0]
[1641665942209,7.03101186,136.54,136.44,7.32493408]
[1641665942407,7.03101186,136.54,136.43,4.0]
[1641665942708,7.03101186,136.54,136.48,7.32305664]
[1641665942909,7.03101186,136.54,136.48,34.98784664]
[1641665943108,7.03101186,136.54,136.48,27.66479]
[1641665943309,10.26555827,136.59,136.5,4.0]
[1641665943509,5.85535995,136.63,136.53,11.32037627]
[1641665944109,5.85535995,136.63,136.53,7.32037627]
[1641665944309,4.0,136.61,136.48,34.98757852]
[1641665944512,7.68689372,136.6,136.48,27.66479]
[1641665944711,5.85689372,136.6,136.48,27.66479]
[1641665945511,7.68689372,136.6,136.48,27.66479]
[1641665945710,5.85741974,136.58,136.48,27.66479]
[1641665945912,4.0,136.52,136.46,27.66479]
[1641665946111,4.0,136.52,136.4,1.831]
[1641665946313,5.86129649,136.49,136.39,4.0]
[1641665946513,5.86129649,136.49,136.41,7.32654407]
[1641665946914,5.86129649,136.49,136.42,27.66479]
[1641665947118,5.86277733,136.46,136.36,15.28175575]
[1641665947320,7.33460466,136.42,136.36,15.28175575]
[1641665947516,5.86587505,136.39,136.36,15.28175575]
[1641665948017,1.833,136.42,136.35,15.28175575]
[1641665948218,1.833,136.5,136.37,7.32869183]
[1641665948414,7.0321324,136.52,136.37,7.32869183]
[1641665948618,7.0321324,136.52,136.36,4.0]
[1641665948816,8.8641324,136.52,136.42,7.32600733]
[1641665949018,8.8641324,136.52,136.43,27.66479]
[1641665949219,5.09493994,136.54,136.44,7.32520236]
[1641665949418,5.09493994,136.54,136.44,7.32493408]
[1641665949620,5.09493994,136.54,136.44,11.32493408]
[1641665950020,10.95278614,136.57,136.44,11.32493408]
[1641665950225,10.95278614,136.57,136.44,7.32493408]
[1641665950720,5.09493994,136.57,136.52,7.32091219]
[1641665950922,5.09493994,136.58,136.55,27.66479]
[1641665951324,5.09493994,136.58,136.56,4.0]
[1641665951520,5.09493994,136.58,136.57,4.0]
[1641665951521,3.26597247,136.58,136.57,4.0]
[1641665951721,3.26597247,136.58,136.56,11.31850117]
[1641665951921,15.28175575,136.61,136.57,4.0]
[1641665952122,51.37542881,136.68,136.56,11.31850117]
[1641665952323,51.37542881,136.68,136.56,7.31850117]
[1641665952523,5.85549749,136.63,136.53,27.66479]
[1641665952822,5.85849799,136.56,136.45,7.32466581]
[1641665953024,5.85849799,136.56,136.5,15.28175575]
[1641665954226,0.83256747,136.55,136.46,27.66479]
[1641665954724,4.0,136.47,136.31,98.25473391]
[1641665954927,55.32958,136.32,136.31,11.80008186]
[1641665955125,61.19813214,136.32,136.31,10.24008186]
[1641665955324,62.03069961,136.32,136.3,121.91499207]
[1641665955724,7.33918021,136.31,136.3,110.89499207]
[1641665955928,5.87008586,136.29,136.19,31.80947937]
[1641665956126,1.834,136.28,136.11,4.0]
[1641665956425,4.0,136.25,136.2,11.25968193]
[1641665956626,7.34241345,136.22,136.2,11.25968193]
[1641665956826,7.34322221,136.21,136.2,11.25968193]
[1641665957026,40.88156725,136.21,136.2,11.25968193]
[1641665957226,44.88156725,136.21,136.18,16.52802115]
[1641665957428,44.88156725,136.21,136.09,35.24249338]
[1641665957429,5.87509534,136.17,136.09,35.24249338]
[1641665957728,4.0,136.14,136.09,35.24249338]
[1641665957927,5.87509534,136.17,136.09,35.24249338]
[1641665958327,0.83256747,136.16,136.09,35.24249338]
[1641665958528,0.83256747,136.16,136.09,24.0]
[1641665959128,27.66479,136.15,136.09,24.0]
[1641665959629,0.83256747,136.14,136.09,24.0]
[1641665960232,0.83256747,136.14,136.11,4.0]
[1641665960533,6.747e-05,136.14,136.12,4.0]
[1641665960731,7.34699875,136.19,136.1,4.0]
[1641665960931,7.34106592,136.24,136.18,4.0]
[1641665961133,27.66479,136.28,136.18,55.32958]
[1641665961535,7.34349183,136.2,136.18,55.32958]
[1641665961732,11.34349183,136.2,136.09,24.0]
[1641665961932,7.34430082,136.18,136.09,24.0]
[1641665962334,7.34591934,136.15,136.09,24.0]
[1641665962537,4.0,136.14,136.09,24.0]
[1641665962736,4.0,136.1,136.09,24.0]
[1641665962934,11.35131956,136.1,136.09,22.1626]
[1641665963135,68.51689956,136.1,136.09,9.46228193]
[1641665963334,64.51689956,136.1,136.09,3.58276771]
[1641665963535,67.5155067,136.1,136.09,3.58276771]
[1641665963738,8.1859267,136.1,136.09,3.58276771]
[1641665964436,8.1859267,136.1,136.09,0.58276771]
[1641665965837,8.1859267,136.1,136.0,27.66479]
[1641665965838,12.1859267,136.1,135.98,27.66479]
[1641665966038,4.0,136.02,135.98,27.66479]
[1641665966238,7.05544917,136.07,135.98,27.66479]
[1641665966239,5.838,136.06,135.98,27.66479]
[1641665966639,0.83460714,136.05,135.98,27.66479]
[1641665966838,0.83460714,136.05,135.98,31.66479]
[1641665967041,0.83460714,136.05,136.04,27.66479]
[1641665967238,9.18445901,136.14,136.04,27.66479]
[1641665967440,4.0,136.13,136.04,27.66479]
[1641665967641,7.34807848,136.11,136.0,1.837]
[1641665967839,7.34969866,136.08,135.98,27.66479]
[1641665968140,7.05442076,136.09,135.98,27.66479]
[1641665968340,1.837,136.08,135.98,27.66479]
[1641665968540,7.35267086,136.03,135.98,27.66479]
[1641665969241,7.35348187,136.01,135.98,27.66479]
[1641665969641,5.8818266,136.02,135.98,27.66479]
[1641665969841,7.35456351,135.99,135.98,27.66479]
[1641665970041,7.35456351,135.99,135.94,27.66479]
[1641665970243,9.88328185,135.98,135.84,11.35456351]
[1641665970441,5.88328185,135.98,135.89,4.0]
[1641665970643,7.35456351,135.99,135.84,7.35456351]
[1641665970841,7.35456351,135.99,135.85,1.839]
[1641665971041,5.8817468,136.02,135.98,27.66479]
[1641665971242,7.35375225,136.01,135.98,27.66479]
[1641665971442,7.35375225,136.01,135.96,27.66479]
[1641665971642,7.35537494,135.98,135.86,1.838]
[1641665971842,7.35537494,135.98,135.85,2.87013377]
[1641665972043,5.88414767,135.96,135.85,2.87013377]
[1641665972442,5.88414767,135.96,135.84,4.0]
[1641665972443,5.88414767,135.96,135.89,4.0]
[1641665972643,10.03047781,135.97,135.88,4.0]
[1641665972644,0.83583235,135.95,135.88,4.0]
[1641665972845,0.83583235,135.95,135.9,4.0]
[1641665973043,7.35402265,136.0,135.94,27.66479]
[1641665973244,34.72145117,136.05,135.94,27.66479]
[1641665973647,0.83562539,135.99,135.94,27.66479]
[1641665974146,8.18883691,136.02,135.94,31.66479]